Cogmind - Beta 15 @@@ ROGUE MODE // 2025.09.18 @ 11:30:35 Player: c4-BRK Result: Self-destructed Performance ------------- Evolutions (2) 1000 Regions Visited (3) 600 Robots Destroyed (14) 70 Value Destroyed (393) 393 Prototype IDs (0) 0 Alien Tech Used (0) 0 Bonus (0) 0 TOTAL SCORE: 2063 Bonus ------- None Cogmind --------- Core Integrity 458/550 Matter 297/300 Energy 200/200 System Corruption 0% Temperature Cool (6) Movement Core (400) Ox7 Location -8/Materials Parts ------- > --- POWER (2) -------- Subdweller Power Source > --- PROPULSION (3) --- (None) > --- UTILITY (4) ------ Small Storage Unit Subdweller Optics Makeshift Light Armor Plating > --- WEAPON (2) ------- Battle Rifle Subdweller Machine Gun > --- INVENTORY (8) ---- Aluminum Leg Scrap Shield Grenade Launcher Subdweller Shrapnel Launcher Peak State ------------ > --- POWER ------------ Subdweller Power Source > --- PROPULSION ------- Wheel Wheel > --- UTILITY ---------- Small Storage Unit Subdweller Optics Makeshift Light Armor Plating > --- WEAPON ----------- Battle Rifle Subdweller Machine Gun > --- INVENTORY -------- Scrap Shield Grenade Launcher Subdweller Shrapnel Launcher [Rating: 15] Favorites ----------- Power Ion Engine Engine Ion Engine Propulsion Aluminum Leg Leg Aluminum Leg Wheel Wheel Utility Small Storage Unit Device Subdweller Optics Storage Small Storage Unit Protection Makeshift Light Armor Plating Weapon Light Assault Rifle Ballistic Gun Light Assault Rifle Build | -11 -10 -10 -8 ------- Run | Yrd Mat Sub Mat Slots Evolved 4 | . . . 4 Power 1 | . . . 1 Propulsion 1 | . . . 1 Utility 2 | . . . 2 Weapon . | . . . . Parts Attached 14 | 6 . 7 1 Power 3 | 1 . 2 . Engine 3 | 1 . 2 . Core . | . . . . Reactor . | . . . . Propulsion 4 | 2 . 2 . Treads . | . . . . Leg 2 | 2 . . . Wheel 2 | . . 2 . Hover . | . . . . Flight . | . . . . Utility 3 | 1 . 1 1 Device 1 | . . 1 . Storage 1 | 1 . . . Processor . | . . . . Hackware . | . . . . Protection 1 | . . . 1 Artifact . | . . . . Weapon 4 | 2 . 2 . Energy Gun . | . . . . Energy Cannon . | . . . . Ballistic Gun 4 | 2 . 2 . Ballistic Cannon . | . . . . Launcher . | . . . . Special Weapon . | . . . . Impact Weapon . | . . . . Slashing Weapon . | . . . . Piercing Weapon . | . . . . Special Melee Weapon . | . . . . Unidentified Prototypes . | . . . . Parts Lost 8 | . . 6 2 Power 2 | . . 2 . Propulsion 4 | . . 2 2 Utility . | . . . . Weapon 2 | . . 2 . Highest Loss Streak 4 | . . 4 1 To Critical Strikes . | . . . . Average Backups 3 | 2 3 4 3 Power . | . . . . Propulsion 1 | 2 2 1 . Utility . | . . 1 1 Weapon 1 | . . 1 2 Tool/Special . | . . . . Unused Backups 3 | . . . 3 Power . | . . . . Propulsion . | . . . . Utility 1 | . . . 1 Weapon 2 | . . . 2 Tool/Special . | . . . . Average Slot Usage (%) 81 | . 85 88 61 Engine 12 | . 14 13 9 Leg 15 | . 28 14 . Wheel 7 | . . 12 7 Device 6 | . . 8 9 Storage 12 | . 14 14 9 Protection 2 | . . . 9 Ballistic Gun 23 | . 28 24 18 Peak Build Rating 15 | 6 6 12 15 Average Rating 8 | 4 6 8 13 On Entrance 6 | . 6 6 12 Naked Turns . | . . . . Heaviest Build 22 | 13 13 18 22 Greatest Support 20 | 20 20 20 20 Greatest Overweight (x) 7 | . . 2 7 Average Overweight (x) . | . . . 3 Largest Inventory Capacity 8 | 8 8 8 8 Average Capacity 7 | 7 8 8 8 Most Carried 8 | 5 4 8 5 Average Carried 4 | 2 3 4 4 Final Capacity 8 | 8 8 8 8 Final Carried 5 | 2 4 5 5 Class Distribution -------------------- 100% | Mutant Dominant Class ---------------- Mutant | -10/Materials Mutant | -10/Subcaves Mutant | -8/Materials Resources | -11 -10 -10 -8 ----------- Run | Yrd Mat Sub Mat Matter Collected 550 | 247 45 88 170 Remotely . | . . . . Salvage Created 532 | . 96 167 269 Parts 40 | . 3 22 15 Haulers Intercepted . | . . . . Recyclers Shooed . | . . . . Parts Field Recycled . | . . . . Retrieved Matter . | . . . . Parts Self-Destructed 9 | . . 9 . Prevented . | . . . . Kills | -11 -10 -10 -8 ------- Run | Yrd Mat Sub Mat Combat Hostiles Destroyed 11 | . 2 6 3 Guns 11 | . 2 6 3 Classes Destroyed 7 | . 1 2 4 Worker 1 | . . . 1 Recycler 1 | . . . 1 Operator 1 | . . . 1 Swarmer 3 | . . 3 . Grunt 4 | . 2 . 2 Sentry 1 | . . . 1 Subdweller 3 | . . 3 . Best Kill Streak 4 | . 2 3 4 Combat Bots Only 3 | . 2 3 2 Max Kills in Single Turn 1 | . 1 1 1 Gunslinging . | . . . . Exploded . | . . . . Melee . | . . . . Uniques/NPCs Destroyed . | . . . . Combat | -11 -10 -10 -8 -------- Run | Yrd Mat Sub Mat Hostile Shots Fired 85 | . 10 39 36 Missed 26 | . 4 11 11 Hits 59 | . 6 28 25 Projectile 59 | . 6 28 25 AOE 5 | . . 5 . Critical Strikes 3 | . . . 3 Damage Taken 1093 | . 86 620 387 Core 138 | . 14 32 92 Absorbed by Shields . | . . . . Core Remaining (%) 90 | 100 . 81 . Volleys Fired 79 | . 8 30 41 Largest 2 | . 2 2 2 Hottest 55 | . 40 55 55 Shots Fired 104 | . 16 41 47 Gun 104 | . 16 41 47 Cannon . | . . . . Launcher . | . . . . Special . | . . . . Kinetic 104 | . 16 41 47 Thermal . | . . . . Explosive . | . . . . Electromagnetic . | . . . . Robot Hit Streak 13 | . 7 13 6 Robot Miss Streak 3 | . 2 3 2 Penetration Max . | . . . . Secondary Targets 2 | . . 2 . Max Gunslinging Chain 1 | . . 1 . Shots Hit Robots 71 | . 11 30 30 Core Hits 31 | . 5 13 13 Critical Kills 1 | . . . 1 Critical Parts Destroyed 1 | . . 1 . Critical Strikes 2 | . . 1 1 Destroy 2 | . . 1 1 Melee Attacks . | . . . . Impact . | . . . . Slashing . | . . . . Piercing . | . . . . Sneak Attacks . | . . . . Combat Hostiles . | . . . . Follow-up Attacks . | . . . . Damage Inflicted 936 | . 113 337 486 Guns 936 | . 113 337 486 Cannons . | . . . . Explosions . | . . . . Melee . | . . . . Ramming . | . . . . Kinetic 936 | . 113 337 486 Thermal . | . . . . Explosive . | . . . . Electromagnetic . | . . . . Impact . | . . . . Slashing . | . . . . Piercing . | . . . . Highest Corruption . | . . . . Average Corruption . | . . . . Corruption Purged . | . . . . Corruption Blocked . | . . . . Overload Shots . | . . . . Overflow Damage . | . . . . Projectiles . | . . . . Explosions . | . . . . Melee . | . . . . Knockbacks . | . . . . Impact . | . . . . Kinetic . | . . . . Secondary . | . . . . Self-Inflicted Damage . | . . . . Shots . | . . . . Rammed . | . . . . Targets Rammed . | . . . . Kicked . | . . . . Crushed . | . . . . Highest Temperature 56 | . 9 . 56 Average Temperature 16 | . 7 . 17 Received Heat Transfer 345 | . 48 36 261 Siege Activations . | . . . . Martial Activations . | . . . . Shielding Activations . | . . . . Robots Disrupted . | . . . . Combat Hostiles . | . . . . Robots Corrupted . | . . . . Combat Hostiles . | . . . . Parts Fried . | . . . . Impact Corruptions . | . . . . Robots Melted . | . . . . Combat Hostiles . | . . . . Parts Melted . | . . . . Heat Transferred . | . . . . Parts Sabotaged . | . . . . Parts Stolen . | . . . . Parts Stripped . | . . . . Power Chain Reactions . | . . . . Alert | -11 -10 -10 -8 ------- Run | Yrd Mat Sub Mat Maximum Alert Level . | . . . . Low Security (%) 100 | 100 100 . 100 Level 1 . | . . . . Level 2 . | . . . . Level 3 . | . . . . Level 4 . | . . . . Level 5 . | . . . . High Security . | . . . . Max Security . | . . . . Peak Influence 80 | . 40 . 80 Initial 20 | . . . 20 Average 20 | . 9 . 49 Influence Increases 240 | . 50 70 120 Destroy 0b10 Robot/C 160 | . 40 60 60 Destroy 0b10 Robot/NC 15 | . . . 15 Destroy Leader 30 | . 10 10 10 Successful Hack 5 | . . . 5 Lose Combat Pursuer 30 | . . . 30 Influence Decreases 190 | . 50 30 110 Entered New Map 20 | . . . 20 Time Decay 150 | . 50 30 70 Lost Part 20 | . . . 20 Squads Dispatched . | . . . . Investigation . | . . . . Extermination . | . . . . Reinforcement . | . . . . Assault . | . . . . Garrison . | . . . . Intercept . | . . . . Searches Triggered . | . . . . Construction Impeded . | . . . . Haulers Reinforced . | . . . . Active Scanning Responses . | . . . . Cargo Convoy Interrupts . | . . . . Stealth | -11 -10 -10 -8 --------- Run | Yrd Mat Sub Mat Distress Signals 2 | . . . 2 Communications Jammed . | . . . . Distress Signals . | . . . . Times Spotted 18 | . 2 6 10 Peak Tracking Total 5 | . 2 3 5 Tactical Retreats 1 | . . . 1 Traps | -11 -10 -10 -8 ------- Run | Yrd Mat Sub Mat Traps Triggered . | . . . . Indirectly . | . . . . Trap Hack Attempts . | . . . . Triggered . | . . . . Disarmed . | . . . . Reprogrammed . | . . . . Reused . | . . . . Traps Extracted . | . . . . Installed . | . . . . Triggered . | . . . . Machines | -11 -10 -10 -8 ---------- Run | Yrd Mat Sub Mat Machines Disabled . | . . . . Max in Single Turn . | . . . . Machines Repaired . | . . . . Machines Dismantled . | . . . . Machines Sabotaged . | . . . . Overloaded Fab Kills . | . . . . Hacking | -11 -10 -10 -8 --------- Run | Yrd Mat Sub Mat Machines Accessed 1 | . . . 1 Terminals 1 | . . . 1 Fabricators . | . . . . Repair Stations . | . . . . Recycling Units . | . . . . Scanalyzers . | . . . . Garrison Access . | . . . . Total Hacks 2 | . . . 2 Successful 1 | . . . 1 Failed 1 | . . . 1 Catastrophic . | . . . . Database Lockouts . | . . . . Manual 2 | . . . 2 Terminals 2 | . . . 2 Fabricators . | . . . . Repair Stations . | . . . . Recycling Units . | . . . . Scanalyzers . | . . . . Garrison Access . | . . . . Terminal Hacks . | . . . . Fabricator Hacks . | . . . . Repair Station Hacks . | . . . . Recycling Unit Hacks . | . . . . Scanalyzer . | . . . . Garrison Access Hacks . | . . . . Unauthorized Hacks 1 | . . . 1 Terminals 1 | . . . 1 Botnet 1 | . . . 1 Fabricators . | . . . . Repair Stations . | . . . . Recycling Units . | . . . . Scanalyzers . | . . . . Garrison Access . | . . . . Data Cores Recovered 1 | . . . 1 Used . | . . . . Hacking Detections 1 | . . . 1 Full Trace Events . | . . . . Feedback Events . | . . . . Feedback Blocked . | . . . . Robot Schematics Acquired . | . . . . Robots Built . | . . . . Authchips . | . . . . Time . | . . . . Total Robot Build Rating . | . . . . Part Schematics Acquired . | . . . . Parts Built . | . . . . Authchips . | . . . . Time . | . . . . Total Part Build Rating . | . . . . Parts Repaired . | . . . . Time . | . . . . Parts Recycled . | . . . . Recycled Matter . | . . . . Retrieved Matter . | . . . . Retrieved Components . | . . . . Parts Scanalyzed . | . . . . Part Schematics Acquired . | . . . . Parts Damaged . | . . . . Bothacking | -11 -10 -10 -8 ------------ Run | Yrd Mat Sub Mat Used RIF Installer . | . . . . Robots Hacked . | . . . . Non-combat . | . . . . Combat . | . . . . Robot Hacks Applied . | . . . . Relay Couplers Released . | . . . . Fabnet Peak Effective % . | . . . . Robots Rewired . | . . . . Allies Hacked . | . . . . Hacks Repelled . | . . . . Allies | -11 -10 -10 -8 -------- Run | Yrd Mat Sub Mat Total Allies . | . . . . Largest Group . | . . . . Highest-Rated Group . | . . . . Highest-Rated Ally . | . . . . Total Orders . | . . . . Ally Attacks . | . . . . Total Damage . | . . . . Kills . | . . . . Allies Corrupted . | . . . . Allies Melted . | . . . . Intel | -11 -10 -10 -8 ------- Run | Yrd Mat Sub Mat Active Infowar (turns) 351 | . . 199 152 Optics 351 | . . 199 152 Robot Analysis Total . | . . . . Derelict Logs Recovered 1 | . . 1 . Drone Launches . | . . . . Drone Recoveries . | . . . . Exploration | -11 -10 -10 -8 ------------- Run | Yrd Mat Sub Mat Turns Passed 768 | 93 207 316 152 Spaces Moved 366 | 82 50 205 29 Core 41 | 26 . 3 12 Treads . | . . . . Legs 195 | 56 50 89 . Wheels 130 | . . 113 17 Hover . | . . . . Flight . | . . . . Fastest Speed 50 | 50 120 80 95 Average Speed 111 | 97 120 98 224 Slowest Speed 400 | 120 120 150 400 Overloaded Moves . | . . . . Propulsion Burnouts . | . . . . Robots Hopped . | . . . . Potential Cave-ins . | . . . . Cave-ins Triggered . | . . . . Exploration Rate (%) 9 | 3 8 17 9 Regions Visited 3 Branch Regions 1 Pre-discovered Areas 1 | . . 1 . Known Exits Taken . | . . . . Unknown Exits Taken 3 | 1 1 1 . Scrap Searched 4 | . . 4 . Spaces Dug . | . . . . Terrain Destroyed . | . . . . Melee . | . . . . Projectile . | . . . . AOE . | . . . . Terrain Rammed . | . . . . Walls Destroyed . | . . . . Machines Disabled . | . . . . Actions | -11 -10 -10 -8 --------- Run | Yrd Mat Sub Mat Total 630 | 94 182 282 72 Wait 157 | . 123 34 . Move 363 | 81 49 204 29 Hop . | . . . . Pick Up 17 | 7 2 7 1 Fast Attach 1 | 1 . . . Attach 13 | 5 . 7 1 Detach . | . . . . Swap . | . . . . Drop . | . . . . Fire 79 | . 8 30 41 Melee . | . . . . Ram . | . . . . Kick . | . . . . Crush . | . . . . Escape Stasis . | . . . . Rewire . | . . . . Trap . | . . . . Miscellaneous . | . . . . Route ------- -11/Scrapyard -10/Materials -10/Subcaves -8/Materials History --------- Turn | Location | Event 5 | -11/Scrapyard | Discovered new exit (range 14) 94 | -11/Scrapyard | Entered Materials 284 | -10/Materials | Discovered new exit (range 9) 301 | -10/Materials | Entered Subcaves 304 | -10/Subcaves | Build established: Mutant 305 | -10/Subcaves | Learned location of Zion (-6) 494 | -10/Subcaves | Lost 4 parts (1p2n1w) 584 | -10/Subcaves | Discovered new exit (range 8) 617 | -10/Subcaves | Entered Materials 617 | -8/Materials | Evolved 4 slots: Power x1, Propulsion x1, Utility x2 769 | -8/Materials | Self-destructed Last Messages --------------- K-01 Serf collects debris. K-01 Serf destroyed. Y-45 Defender destroyed. Critical hit (Burn: +37). R-06 Scavenger collects Lgt. Ion Engine. Wheel destroyed. R-06 Scavenger collects Lgt. Treads. Critical hit (Burn: +37). R-06 Scavenger collects Heat Sink. R-06 Scavenger collects Beam Rifle. Destroyed Lgt. Nuclear Core. G-47 Trooper suffers critical hit (Destroy). G-47 Trooper destroyed. Acquired 52 matter. Acquired Aluminum Leg. Acquired 18 matter. R-06 Scavenger collects Particle Gun. Acquired 9 matter. Critical hit (Burn: +37). K-01 Serf collects debris. Map ----- +----------------------------------------------------+ | ?????????????????????????????????????????????????? | | ?????????????????????????????????????????????????? | | ????????????????????#????????????????????????????? | | ????????????????????# ???????????????????????????? | | ????????????????????# ???????????????????????????? | | ????????????????????# ???????????????????????????? | | ???????????????###### ####???????????????????????? | | ?????????????? ^ /???????????????????????? | | ??????????????? ^ ???????????????????????? | | ??????????????? ![[ #??????????????????????? | | ??????????????# ![ #??????????????????????? | | ??????????????? [[ #??????????????????????? | | ???????????????? ^ ??????????????????????? | | ????????????????# ??????????????????????? | | ????????????????# ^ #??????????????????????? | | ????????????????# """ #??????????????????????? | | ????????????????# """ k#??????????????????????? | | ????????????????# """ #??????????????????????? | | ????????????????# #??????????????????????? | | ????????????????# #????#####?????????????? | | ????????????????# """ #????#"""#???????????##? | | ????????????????# """ %#?####"T"###########"T"# | | ????????????????# """ #?# | | ????????????????# #?# | | ????????????????# #?# ^ | | ???????????????## % @### """ ^^"?? | | ?????? kra % ! """"" ????? | | ????? ##"T"##### " """"" ^???? | | ?????? #+####+##+?####????# T """"" """? | | ????????????????????????????# " """ """ | | ????????????????????????????# | | ????????????????????????????# | | ????????????????????????????# ############+##### | | ????????????????????????????# #????????????????? | | ????????????????????????????# #????????????????? | | ????????????????????????????# #????????????????? | | ????????????????????????????#####????????????????? | | ?????????????????????????????????????????????????? | | ?????????????????????????????????????????????????? | | ?????????????????????????????????????????????????? | | ?????????????????????????????????????????????????? | | ?????????????????????????????????????????????????? | | ?????????????????????????????????????????????????? | | ?????????????????????????????????????????????????? | | ?????????????????????????????????????????????????? | | ?????????????????????????????????????????????????? | | | | | | | | | +----------------------------------------------------+ Best States ------------- Heat Dissipation 31 Energy Generation 15 Energy Capacity 250 Matter Stores 300 Matter Capacity 300 Sight Range 21 Terrain Scan Density 10 Armor Coverage 100 Evasion (%) 55 Item Schematics ----------------- None Robot Schematics ------------------ None Fabricated ------------ Nothing Repaired ---------- Nothing Alien Tech Used ----------------- None Achievements -------------- None Challenges ------------ None Game ------ Seed MyomerMasterVibroblade Manual? 0 Play Time 00:11:13 Cumulative 25.1 hours Start 2025.09.18 @ 01:22:19 End 2025.09.18 @ 11:30:35 Sessions 3 Manual Loads 0 Difficulty Rogue Special Mode None Game No. 40 Rogue 19 Adventurer 21 Explorer 0 Win Type - Total 1 Types 0/0/0/0/0/0/0/1/0/0 Lore% 48 Gallery% 32 Achievement% 37 Wizard Run 0 Options --------- Layout 1 ASCII 0 Keyboard 0 Movement Mouse Keybinds 0 Fullscreen 2 Font 24/Smallcaps Map View 50x35 Zoom Use 0% Tactical HUD 0 Map Filters NONE Filters NONE Steam 1 RUN: 2662487d-9f67-4536-8543-003b77482599